[Event "Late-Titled-Tuesday-Blitz-March-05-2024"]
[Site "Chess.com"]
[Date "2024.03.05"]
[Round "5"]
[White "KuzubovYuriy"]
[Black "BabageldiAnnaberdiyev"]
[Result "1-0"]
[WhiteElo "2934"]
[BlackElo "2628"]
[TimeControl "180+1"]
[EndTime "14:56:13 PST"]
[Termination "KuzubovYuriy won on time"]

1. d4 {[%clk 0:03:00.9]} 1... e6 {[%clk 0:03:00.9]} 2. c4 {[%clk 0:03:00.5]}
2... f5 {[%clk 0:03:00.9]} 3. Nf3 {[%clk 0:02:59.8]} 3... Nf6 {[%clk 0:03:01.3]}
4. a3 {[%clk 0:02:59.3]} 4... d5 {[%clk 0:03:00]} 5. Bf4 {[%clk 0:02:58.7]} 5...
c6 {[%clk 0:02:59]} 6. e3 {[%clk 0:02:58.6]} 6... Bd6 {[%clk 0:02:59.4]} 7. Nc3
{[%clk 0:02:58.7]} 7... O-O {[%clk 0:02:59.9]} 8. Be2 {[%clk 0:02:58.8]} 8... a5
{[%clk 0:02:57.5]} 9. Qc2 {[%clk 0:02:58.1]} 9... Ne4 {[%clk 0:02:57.5]} 10. h4
{[%clk 0:02:49.8]} 10... Bxf4 {[%clk 0:02:48.5]} 11. exf4 {[%clk 0:02:49.8]}
11... Nd7 {[%clk 0:02:49.1]} 12. Rc1 {[%clk 0:02:29.3]} 12... Qe7 {[%clk
0:02:47.3]} 13. Nb1 {[%clk 0:02:20.6]} 13... Qd6 {[%clk 0:02:15.4]} 14. g3
{[%clk 0:02:17.3]} 14... Qe7 {[%clk 0:01:53.7]} 15. Kf1 {[%clk 0:02:08]} 15...
Ndf6 {[%clk 0:01:48.1]} 16. Ne5 {[%clk 0:02:02.7]} 16... Nd7 {[%clk 0:01:47.8]}
17. Nd3 {[%clk 0:01:50.3]} 17... Ndf6 {[%clk 0:01:45.6]} 18. Kg2 {[%clk
0:01:47.7]} 18... Nd7 {[%clk 0:01:42.9]} 19. Rhe1 {[%clk 0:01:44]} 19... Qd6
{[%clk 0:01:41.9]} 20. Nd2 {[%clk 0:01:30.3]} 20... Re8 {[%clk 0:01:26.6]} 21.
Nf3 {[%clk 0:01:27.7]} 21... a4 {[%clk 0:01:09.1]} 22. Nfe5 {[%clk 0:01:22.8]}
22... Nf8 {[%clk 0:01:07.4]} 23. f3 {[%clk 0:01:17.5]} 23... Nf6 {[%clk
0:01:07]} 24. c5 {[%clk 0:01:15.8]} 24... Qe7 {[%clk 0:01:04.3]} 25. b4 {[%clk
0:01:15.2]} 25... axb3 {[%clk 0:01:00.2]} 26. Qxb3 {[%clk 0:01:15.1]} 26... N6d7
{[%clk 0:01:00.8]} 27. Ra1 {[%clk 0:01:11.2]} 27... Nxe5 {[%clk 0:01:00.8]} 28.
fxe5 {[%clk 0:01:06.6]} 28... g6 {[%clk 0:00:57.3]} 29. a4 {[%clk 0:01:05.8]}
29... Qc7 {[%clk 0:00:54.8]} 30. Qb4 {[%clk 0:01:04.2]} 30... Qa5 {[%clk
0:00:53.4]} 31. Reb1 {[%clk 0:01:02.7]} 31... Qxb4 {[%clk 0:00:53.4]} 32. Rxb4
{[%clk 0:01:02.1]} 32... Ra7 {[%clk 0:00:53.9]} 33. Rab1 {[%clk 0:00:55.7]}
33... Kf7 {[%clk 0:00:53]} 34. Nc1 {[%clk 0:00:53.9]} 34... Ke7 {[%clk
0:00:53.1]} 35. Nb3 {[%clk 0:00:53.7]} 35... Kd7 {[%clk 0:00:53.6]} 36. Kf2
{[%clk 0:00:47]} 36... Kc7 {[%clk 0:00:52.7]} 37. Ke3 {[%clk 0:00:47.2]} 37...
h6 {[%clk 0:00:48.3]} 38. Rh1 {[%clk 0:00:44.4]} 38... Nh7 {[%clk 0:00:47.5]}
39. Bd3 {[%clk 0:00:41.6]} 39... Rf8 {[%clk 0:00:46]} 40. a5 {[%clk 0:00:40]}
40... Bd7 {[%clk 0:00:38.5]} 41. Ke2 {[%clk 0:00:36.6]} 41... Rfa8 {[%clk
0:00:37.8]} 42. g4 {[%clk 0:00:34.3]} 42... Rg8 {[%clk 0:00:28.6]} 43. Ke3
{[%clk 0:00:29.1]} 43... h5 {[%clk 0:00:23.5]} 44. gxh5 {[%clk 0:00:25.6]} 44...
gxh5 {[%clk 0:00:24.4]} 45. Ra4 {[%clk 0:00:23.7]} 45... Rg2 {[%clk 0:00:22.5]}
46. Nc1 {[%clk 0:00:21.9]} 46... Ra8 {[%clk 0:00:21.5]} 47. Ne2 {[%clk 0:00:22]}
47... Be8 {[%clk 0:00:16.5]} 48. Rg1 {[%clk 0:00:19.2]} 48... Rxg1 {[%clk
0:00:15.8]} 49. Nxg1 {[%clk 0:00:19.3]} 49... Nf8 {[%clk 0:00:15.9]} 50. Kf4
{[%clk 0:00:16.7]} 50... Nh7 {[%clk 0:00:15.9]} 51. Nh3 {[%clk 0:00:16.4]} 51...
Bf7 {[%clk 0:00:14.8]} 52. Ra1 {[%clk 0:00:16.4]} 52... Rg8 {[%clk 0:00:12.9]}
53. a6 {[%clk 0:00:16.3]} 53... bxa6 {[%clk 0:00:09.7]} 54. Rxa6 {[%clk
0:00:16.4]} 54... Kb7 {[%clk 0:00:10.3]} 55. Ra1 {[%clk 0:00:16.5]} 55... Rg2
{[%clk 0:00:08.8]} 56. Rb1+ {[%clk 0:00:14.4]} 56... Kc7 {[%clk 0:00:08.6]} 57.
Rg1 {[%clk 0:00:14.8]} 57... Rxg1 {[%clk 0:00:08.4]} 58. Nxg1 {[%clk 0:00:15.2]}
58... Kd7 {[%clk 0:00:08.3]} 59. Nh3 {[%clk 0:00:15.3]} 59... Ke7 {[%clk
0:00:08.8]} 60. Ng5 {[%clk 0:00:15.4]} 60... Nf8 {[%clk 0:00:09.3]} 61. Nh3
{[%clk 0:00:14.6]} 61... Nh7 {[%clk 0:00:08.7]} 62. Ba6 {[%clk 0:00:14.4]} 62...
Be8 {[%clk 0:00:08.7]} 63. Bc8 {[%clk 0:00:13.5]} 63... Kf7 {[%clk 0:00:05.7]}
64. Ng5+ {[%clk 0:00:13.6]} 64... Nxg5 {[%clk 0:00:03.4]} 65. Kxg5 {[%clk
0:00:14.5]} 65... Ke7 {[%clk 0:00:03.8]} 66. f4 {[%clk 0:00:14.2]} 66... Bf7
{[%clk 0:00:03]} 67. Kh6 {[%clk 0:00:14.5]} 67... Be8 {[%clk 0:00:03.5]} 68. Kg7
{[%clk 0:00:13.9]} 68... Bf7 {[%clk 0:00:03.9]} 69. Bd7 {[%clk 0:00:13.2]} 1-0

[Event "Late-Titled-Tuesday-Blitz-March-05-2024"]
[Site "Chess.com"]
[Date "2024.03.05"]
[Round "5"]
[White "VinzentSpitzl"]
[Black "the_blue_pill"]
[Result "1-0"]
[WhiteElo "2549"]
[BlackElo "2414"]
[TimeControl "180+1"]
[EndTime "14:56:14 PST"]
[Termination "VinzentSpitzl won on time"]

1. e4 {[%clk 0:02:20.8]} 1... c5 {[%clk 0:02:59.4]} 2. Nf3 {[%clk 0:02:20.1]}
2... d6 {[%clk 0:02:59.3]} 3. d4 {[%clk 0:02:20.7]} 3... cxd4 {[%clk 0:02:59.4]}
4. Nxd4 {[%clk 0:02:21.6]} 4... Nf6 {[%clk 0:02:59.5]} 5. Nc3 {[%clk 0:02:22.1]}
5... g6 {[%clk 0:02:58.7]} 6. Be3 {[%clk 0:02:21.9]} 6... Bg7 {[%clk 0:02:58.9]}
7. f3 {[%clk 0:02:22]} 7... O-O {[%clk 0:02:59.5]} 8. Qd2 {[%clk 0:02:22.4]}
8... Nc6 {[%clk 0:02:59.9]} 9. O-O-O {[%clk 0:02:23]} 9... d5 {[%clk 0:03:00.3]}
10. exd5 {[%clk 0:02:23.3]} 10... Nxd5 {[%clk 0:02:59.8]} 11. Nxc6 {[%clk
0:02:23.9]} 11... bxc6 {[%clk 0:03:00.3]} 12. Nxd5 {[%clk 0:02:24.4]} 12... cxd5
{[%clk 0:02:59.8]} 13. Qxd5 {[%clk 0:02:25.1]} 13... Qc7 {[%clk 0:03:00.2]} 14.
Qc5 {[%clk 0:02:25.6]} 14... Qb7 {[%clk 0:03:00.5]} 15. b3 {[%clk 0:02:26]}
15... Bf5 {[%clk 0:02:54.9]} 16. Bd3 {[%clk 0:02:26]} 16... Rfc8 {[%clk
0:02:48.3]} 17. Qa5 {[%clk 0:02:25.7]} 17... Rc3 {[%clk 0:02:03.5]} 18. Bxf5
{[%clk 0:02:24.7]} 18... Rxe3 {[%clk 0:02:02.8]} 19. Be4 {[%clk 0:02:23.6]}
19... Rxe4 {[%clk 0:01:54.2]} 20. Rd8+ {[%clk 0:02:10.3]} 20... Rxd8 {[%clk
0:01:49.6]} 21. Qxd8+ {[%clk 0:02:09.9]} 21... Bf8 {[%clk 0:01:49.9]} 22. fxe4
{[%clk 0:02:10]} 22... Qxe4 {[%clk 0:01:49.6]} 23. Qd2 {[%clk 0:01:59.6]} 23...
Qe5 {[%clk 0:01:24.9]} 24. c3 {[%clk 0:01:57.7]} 24... h5 {[%clk 0:01:18.9]} 25.
Kb2 {[%clk 0:01:52.3]} 25... Bg7 {[%clk 0:01:11.6]} 26. h3 {[%clk 0:01:43.4]}
26... Bf6 {[%clk 0:01:09.1]} 27. Re1 {[%clk 0:01:39.9]} 27... Qc5 {[%clk
0:01:03.9]} 28. Qe3 {[%clk 0:01:33.7]} 28... Qc7 {[%clk 0:01:01.8]} 29. Rd1
{[%clk 0:01:27.4]} 29... Kg7 {[%clk 0:01:01.3]} 30. b4 {[%clk 0:01:16.2]} 30...
Qb7 {[%clk 0:00:56.1]} 31. Rd2 {[%clk 0:01:13.4]} 31... Qxb4+ {[%clk 0:00:55.4]}
32. Kc2 {[%clk 0:01:12.5]} 32... Qa4+ {[%clk 0:00:54.3]} 33. Kc1 {[%clk
0:01:12.2]} 33... Qa3+ {[%clk 0:00:52.9]} 34. Kc2 {[%clk 0:01:08.6]} 34... Qxa2+
{[%clk 0:00:52.4]} 35. Kd3 {[%clk 0:01:08.8]} 35... Qb1+ {[%clk 0:00:45.9]} 36.
Ke2 {[%clk 0:01:07.7]} 36... a5 {[%clk 0:00:45.6]} 37. c4 {[%clk 0:01:00]} 37...
a4 {[%clk 0:00:39.4]} 38. c5 {[%clk 0:00:59]} 38... Qb5+ {[%clk 0:00:35.5]} 39.
Kf2 {[%clk 0:00:53.6]} 39... Qc4 {[%clk 0:00:23.1]} 40. Rd1 {[%clk 0:00:35.9]}
40... Qc2+ {[%clk 0:00:17]} 41. Rd2 {[%clk 0:00:35.5]} 41... Qc4 {[%clk
0:00:17.1]} 42. Rd1 {[%clk 0:00:35.4]} 42... a3 {[%clk 0:00:12.6]} 43. Rc1
{[%clk 0:00:27]} 43... Qh4+ {[%clk 0:00:12.3]} 44. g3 {[%clk 0:00:24.2]} 44...
Qxh3 {[%clk 0:00:11.3]} 45. c6 {[%clk 0:00:22.8]} 45... a2 {[%clk 0:00:07.1]}
46. c7 {[%clk 0:00:17.1]} 46... a1=Q {[%clk 0:00:06.5]} 47. c8=Q {[%clk
0:00:17.4]} 47... Qxc8 {[%clk 0:00:06]} 48. Rxc8 {[%clk 0:00:16.4]} 48... Qb2+
{[%clk 0:00:06.2]} 49. Qe2 {[%clk 0:00:11]} 49... Qd4+ {[%clk 0:00:05.5]} 50.
Kf1 {[%clk 0:00:09.4]} 50... Qd7 {[%clk 0:00:04.4]} 51. Rc2 {[%clk 0:00:08.5]}
51... Qh3+ {[%clk 0:00:04.3]} 52. Qg2 {[%clk 0:00:08.1]} 52... Qf5+ {[%clk
0:00:04.5]} 53. Qf2 {[%clk 0:00:07.5]} 53... Qd3+ {[%clk 0:00:04.2]} 54. Kg2
{[%clk 0:00:07.7]} 54... Qe4+ {[%clk 0:00:03.5]} 55. Kf1 {[%clk 0:00:06.8]}
55... Qd3+ {[%clk 0:00:03.7]} 56. Kg2 {[%clk 0:00:06.4]} 56... Qe4+ {[%clk
0:00:04.6]} 57. Kf1 {[%clk 0:00:06.7]} 57... h4 {[%clk 0:00:05.3]} 58. Qg2
{[%clk 0:00:03.5]} 58... Qd3+ {[%clk 0:00:04.5]} 59. Qe2 {[%clk 0:00:03.7]}
59... Qxg3 {[%clk 0:00:04.1]} 60. Qf2 {[%clk 0:00:03.1]} 60... Qh3+ {[%clk
0:00:03.9]} 61. Ke2 {[%clk 0:00:03.3]} 61... Qg4+ {[%clk 0:00:03.6]} 62. Qf3
{[%clk 0:00:03.7]} 62... Qe6+ {[%clk 0:00:03.4]} 63. Kf1 {[%clk 0:00:03.6]} 1-0

[Event "Late-Titled-Tuesday-Blitz-March-05-2024"]
[Site "Chess.com"]
[Date "2024.03.05"]
[Round "5"]
[White "TenisMaster"]
[Black "jinbojinbo"]
[Result "1-0"]
[WhiteElo "2876"]
[BlackElo "2637"]
[TimeControl "180+1"]
[EndTime "14:56:17 PST"]
[Termination "TenisMaster won by checkmate"]

1. e4 {[%clk 0:03:00.9]} 1... e5 {[%clk 0:02:24.7]} 2. Nf3 {[%clk 0:02:56.6]}
2... Nc6 {[%clk 0:02:24.3]} 3. Bb5 {[%clk 0:02:55.9]} 3... a6 {[%clk 0:02:23.3]}
4. Ba4 {[%clk 0:02:55.8]} 4... Nf6 {[%clk 0:02:23.5]} 5. O-O {[%clk 0:02:55.6]}
5... Be7 {[%clk 0:02:23.2]} 6. Re1 {[%clk 0:02:54.8]} 6... b5 {[%clk 0:02:22.9]}
7. Bb3 {[%clk 0:02:55.2]} 7... O-O {[%clk 0:02:23.4]} 8. h3 {[%clk 0:02:55.2]}
8... Bb7 {[%clk 0:02:21.7]} 9. d3 {[%clk 0:02:54.4]} 9... d5 {[%clk 0:02:21.3]}
10. exd5 {[%clk 0:02:47.2]} 10... Nxd5 {[%clk 0:02:22.2]} 11. a4 {[%clk
0:02:45.6]} 11... Nd4 {[%clk 0:02:09]} 12. Nxd4 {[%clk 0:02:45.3]} 12... exd4
{[%clk 0:02:09.9]} 13. Nd2 {[%clk 0:02:45.3]} 13... Re8 {[%clk 0:02:02.2]} 14.
Ne4 {[%clk 0:02:37.4]} 14... Bb4 {[%clk 0:02:01.4]} 15. Bd2 {[%clk 0:02:30.6]}
15... Bxd2 {[%clk 0:01:57.4]} 16. Qxd2 {[%clk 0:02:31.5]} 16... Nf6 {[%clk
0:01:42.5]} 17. Qf4 {[%clk 0:02:13.1]} 17... Bxe4 {[%clk 0:01:29.2]} 18. dxe4
{[%clk 0:02:12.5]} 18... c5 {[%clk 0:01:27.6]} 19. e5 {[%clk 0:01:50.7]} 19...
Nd5 {[%clk 0:01:27.1]} 20. Qe4 {[%clk 0:01:18.5]} 20... c4 {[%clk 0:01:26.2]}
21. Ba2 {[%clk 0:01:19.3]} 21... Nb4 {[%clk 0:01:18.1]} 22. Bb1 {[%clk
0:01:19.4]} 22... d3 {[%clk 0:00:47.6]} 23. axb5 {[%clk 0:00:55.2]} 23... dxc2
{[%clk 0:00:46.2]} 24. Bxc2 {[%clk 0:00:53.8]} 24... Nxc2 {[%clk 0:00:44.6]} 25.
Qxc2 {[%clk 0:00:51.9]} 25... axb5 {[%clk 0:00:44.6]} 26. Rad1 {[%clk
0:00:52.5]} 26... Qc7 {[%clk 0:00:40]} 27. Rd5 {[%clk 0:00:52.4]} 27... b4
{[%clk 0:00:34]} 28. Re4 {[%clk 0:00:48.8]} 28... Rac8 {[%clk 0:00:20.4]} 29. f4
{[%clk 0:00:38.1]} 29... h6 {[%clk 0:00:15.2]} 30. Kh2 {[%clk 0:00:37.8]} 30...
Qc6 {[%clk 0:00:14.1]} 31. Rdd4 {[%clk 0:00:37.8]} 31... c3 {[%clk 0:00:14.1]}
32. Rxb4 {[%clk 0:00:37.8]} 32... cxb2 {[%clk 0:00:14.3]} 33. Qxb2 {[%clk
0:00:37.7]} 33... Qc2 {[%clk 0:00:14.5]} 34. Re2 {[%clk 0:00:31.4]} 34... Qxb2
{[%clk 0:00:14.4]} 35. Rexb2 {[%clk 0:00:32.3]} 35... Rc7 {[%clk 0:00:13.8]} 36.
g4 {[%clk 0:00:28.2]} 36... g5 {[%clk 0:00:12.8]} 37. Re2 {[%clk 0:00:26.3]}
37... gxf4 {[%clk 0:00:12.6]} 38. Rxf4 {[%clk 0:00:26.1]} 38... Kg7 {[%clk
0:00:12.3]} 39. Kg3 {[%clk 0:00:25.3]} 39... Rce7 {[%clk 0:00:12]} 40. Rf5
{[%clk 0:00:25.3]} 40... Re6 {[%clk 0:00:12.2]} 41. Kf4 {[%clk 0:00:25.1]} 41...
Rc8 {[%clk 0:00:12.9]} 42. Re3 {[%clk 0:00:24.7]} 42... Rc4+ {[%clk 0:00:13.2]}
43. Kg3 {[%clk 0:00:25.2]} 43... Rc5 {[%clk 0:00:13.4]} 44. Ref3 {[%clk
0:00:24.7]} 44... Re7 {[%clk 0:00:13.3]} 45. Re3 {[%clk 0:00:24.4]} 45... Rb5
{[%clk 0:00:12.8]} 46. h4 {[%clk 0:00:23.6]} 46... Ra5 {[%clk 0:00:12]} 47. h5
{[%clk 0:00:23.5]} 47... Rb5 {[%clk 0:00:12.3]} 48. Kh4 {[%clk 0:00:24.1]} 48...
Ra5 {[%clk 0:00:12.2]} 49. Re4 {[%clk 0:00:23.9]} 49... Rb5 {[%clk 0:00:10.9]}
50. g5 {[%clk 0:00:24.2]} 50... hxg5+ {[%clk 0:00:11]} 51. Kxg5 {[%clk
0:00:25.1]} 51... Rb1 {[%clk 0:00:10]} 52. h6+ {[%clk 0:00:24.8]} 52... Kh7
{[%clk 0:00:09]} 53. Kf6 {[%clk 0:00:23]} 53... Reb7 {[%clk 0:00:07.6]} 54. Rh5
{[%clk 0:00:15.3]} 54... Rg1 {[%clk 0:00:05]} 55. Kf5 {[%clk 0:00:15.2]} 55...
Rg6 {[%clk 0:00:05]} 56. Reh4 {[%clk 0:00:14.2]} 56... Re7 {[%clk 0:00:03.7]}
57. Rh2 {[%clk 0:00:12.2]} 57... Rd7 {[%clk 0:00:03.8]} 58. Ra2 {[%clk
0:00:10.7]} 58... Rb7 {[%clk 0:00:04]} 59. Rd2 {[%clk 0:00:10.8]} 59... Ra7
{[%clk 0:00:03]} 60. Rd6 {[%clk 0:00:10.9]} 60... Rg1 {[%clk 0:00:02]} 61. Rh4
{[%clk 0:00:09.3]} 61... Rf1+ {[%clk 0:00:02.3]} 62. Rf4 {[%clk 0:00:09.5]}
62... Rh1 {[%clk 0:00:02.8]} 63. Kg5 {[%clk 0:00:09]} 63... Rg1+ {[%clk
0:00:03.1]} 64. Kf5 {[%clk 0:00:09.4]} 64... Rh1 {[%clk 0:00:03.6]} 65. Rg4
{[%clk 0:00:09.3]} 65... Rh5+ {[%clk 0:00:03.3]} 66. Rg5 {[%clk 0:00:07.5]}
66... Rh4 {[%clk 0:00:03.1]} 67. Rg7+ {[%clk 0:00:07]} 67... Kh8 {[%clk
0:00:02.6]} 68. Rd8# {[%clk 0:00:07.9]} 1-0

[Event "Late-Titled-Tuesday-Blitz-March-05-2024"]
[Site "Chess.com"]
[Date "2024.03.05"]
[Round "5"]
[White "guillembaches"]
[Black "kai_nov"]
[Result "1-0"]
[WhiteElo "2535"]
[BlackElo "2371"]
[TimeControl "180+1"]
[EndTime "14:56:17 PST"]
[Termination "guillembaches won by checkmate"]

1. Nf3 {[%clk 0:03:00.9]} 1... d5 {[%clk 0:02:55.5]} 2. d4 {[%clk 0:03:00.5]}
2... Nf6 {[%clk 0:02:52.7]} 3. c4 {[%clk 0:03:00.6]} 3... e6 {[%clk 0:02:52.4]}
4. cxd5 {[%clk 0:03:00.7]} 4... exd5 {[%clk 0:02:52.4]} 5. Qc2 {[%clk
0:03:01.3]} 5... c6 {[%clk 0:02:50.6]} 6. Nc3 {[%clk 0:02:59]} 6... Bd6 {[%clk
0:02:36.4]} 7. Bg5 {[%clk 0:02:53.1]} 7... O-O {[%clk 0:02:30.7]} 8. h3 {[%clk
0:02:47.7]} 8... h6 {[%clk 0:02:24.8]} 9. Bd2 {[%clk 0:02:35.9]} 9... Re8 {[%clk
0:02:08.7]} 10. e3 {[%clk 0:02:34]} 10... Ne4 {[%clk 0:01:58.1]} 11. Nxe4 {[%clk
0:02:33.3]} 11... dxe4 {[%clk 0:01:57.9]} 12. Ng1 {[%clk 0:02:33.2]} 12... Nd7
{[%clk 0:01:47]} 13. Ne2 {[%clk 0:02:30.7]} 13... Nf6 {[%clk 0:01:14.9]} 14. Nc3
{[%clk 0:02:28.4]} 14... Qe7 {[%clk 0:01:05]} 15. Be2 {[%clk 0:02:21.7]} 15...
Bd7 {[%clk 0:00:39.4]} 16. g4 {[%clk 0:02:12.8]} 16... c5 {[%clk 0:00:38]} 17.
d5 {[%clk 0:02:11.6]} 17... a6 {[%clk 0:00:36.1]} 18. Rg1 {[%clk 0:01:46.6]}
18... Qe5 {[%clk 0:00:28.9]} 19. O-O-O {[%clk 0:01:37.8]} 19... b5 {[%clk
0:00:26.7]} 20. h4 {[%clk 0:01:28.5]} 20... b4 {[%clk 0:00:24.6]} 21. g5 {[%clk
0:01:27.5]} 21... Nxd5 {[%clk 0:00:12.2]} 22. Nxd5 {[%clk 0:01:24.5]} 22... Qxd5
{[%clk 0:00:11.4]} 23. Bc4 {[%clk 0:01:22.6]} 23... Qe5 {[%clk 0:00:09.3]} 24.
gxh6 {[%clk 0:01:19.3]} 24... Be6 {[%clk 0:00:06.5]} 25. Rxg7+ {[%clk
0:01:10.5]} 25... Kh8 {[%clk 0:00:06.6]} 26. Rdg1 {[%clk 0:01:10.4]} 26... Bxc4
{[%clk 0:00:03.5]} 27. Qxc4 {[%clk 0:01:10.2]} 27... Re6 {[%clk 0:00:03.6]} 28.
Rxf7 {[%clk 0:00:59.7]} 28... Bf8 {[%clk 0:00:02.7]} 29. h7 {[%clk 0:00:55.8]}
29... Bh6 {[%clk 0:00:01.4]} 30. Re7 {[%clk 0:00:39]} 30... Rd8 {[%clk
0:00:01.6]} 31. Qxe6 {[%clk 0:00:33.2]} 31... Qxe6 {[%clk 0:00:01.4]} 32. Rxe6
{[%clk 0:00:33.6]} 32... Kxh7 {[%clk 0:00:01.7]} 33. Re7+ {[%clk 0:00:33.1]}
33... Kh8 {[%clk 0:00:02.6]} 34. Rg6 {[%clk 0:00:31.7]} 34... Bf8 {[%clk
0:00:02.5]} 35. Re5 {[%clk 0:00:29.6]} 35... Kh7 {[%clk 0:00:03]} 36. Rxa6
{[%clk 0:00:27.7]} 36... Bg7 {[%clk 0:00:03]} 37. Rxe4 {[%clk 0:00:27]} 37... c4
{[%clk 0:00:02.7]} 38. Ra7 {[%clk 0:00:26.8]} 38... c3 {[%clk 0:00:03.2]} 39.
Ree7 {[%clk 0:00:23.1]} 39... cxd2+ {[%clk 0:00:03.1]} 40. Kd1 {[%clk
0:00:23.2]} 40... Kh8 {[%clk 0:00:03.7]} 41. Rxg7 {[%clk 0:00:23.1]} 41... b3
{[%clk 0:00:04.6]} 42. axb3 {[%clk 0:00:22.7]} 42... Rc8 {[%clk 0:00:05]} 43.
Rh7+ {[%clk 0:00:22.3]} 43... Kg8 {[%clk 0:00:05]} 44. Rag7+ {[%clk 0:00:22.3]}
44... Kf8 {[%clk 0:00:05.5]} 45. Rd7 {[%clk 0:00:22.3]} 45... Kg8 {[%clk
0:00:05.4]} 46. Rhe7 {[%clk 0:00:22.2]} 46... Ra8 {[%clk 0:00:02.9]} 47. Kxd2
{[%clk 0:00:22.2]} 47... Kh8 {[%clk 0:00:03.3]} 48. h5 {[%clk 0:00:22]} 48...
Rc8 {[%clk 0:00:02.4]} 49. Rc7 {[%clk 0:00:22]} 49... Rd8+ {[%clk 0:00:02.6]}
50. Red7 {[%clk 0:00:22.1]} 50... Re8 {[%clk 0:00:02.2]} 51. Ke2 {[%clk
0:00:22.1]} 51... Rb8 {[%clk 0:00:01.9]} 52. b4 {[%clk 0:00:19.8]} 52... Ra8
{[%clk 0:00:02.4]} 53. b5 {[%clk 0:00:19.8]} 53... Rb8 {[%clk 0:00:02.7]} 54. b6
{[%clk 0:00:19.9]} 54... Re8 {[%clk 0:00:02.8]} 55. b7 {[%clk 0:00:18.8]} 55...
Kg8 {[%clk 0:00:02.8]} 56. b3 {[%clk 0:00:18.2]} 56... Rf8 {[%clk 0:00:02.8]}
57. b4 {[%clk 0:00:17.7]} 57... Rf7 {[%clk 0:00:02.1]} 58. Rxf7 {[%clk
0:00:16.6]} 58... Kh8 {[%clk 0:00:02.2]} 59. f3 {[%clk 0:00:16]} 59... Kg8
{[%clk 0:00:01.6]} 60. b5 {[%clk 0:00:15.9]} 60... Kh8 {[%clk 0:00:02.5]} 61. b6
{[%clk 0:00:15.4]} 61... Kg8 {[%clk 0:00:03.4]} 62. Rg7+ {[%clk 0:00:15.2]}
62... Kh8 {[%clk 0:00:04.3]} 63. Rh7+ {[%clk 0:00:15.3]} 63... Kg8 {[%clk
0:00:05.2]} 64. Rcg7+ {[%clk 0:00:15.1]} 64... Kf8 {[%clk 0:00:05.8]} 65. h6
{[%clk 0:00:15]} 65... Ke8 {[%clk 0:00:06.7]} 66. f4 {[%clk 0:00:15.1]} 66...
Kd8 {[%clk 0:00:07.6]} 67. e4 {[%clk 0:00:14.8]} 67... Ke8 {[%clk 0:00:08.5]}
68. e5 {[%clk 0:00:14.7]} 68... Kf8 {[%clk 0:00:09.4]} 69. f5 {[%clk 0:00:14.4]}
69... Ke8 {[%clk 0:00:10.3]} 70. e6 {[%clk 0:00:14.1]} 70... Kd8 {[%clk
0:00:11.2]} 71. b8=Q# {[%clk 0:00:12.9]} 1-0